bitfinex/quotes_SOLUSD_20220228
["timestamp","ask_amount","ask_price","bid_price","bid_amount"]
[1646024429910,33.08718258,86.406,86.314,115.6]
[1646024430109,10.631,86.405,86.318,115.6]
[1646024430310,10.631,86.405,86.321,3.11053099]
[1646024430511,10.631,86.405,86.324,2.77854998]
[1646024430710,33.08718258,86.406,86.327,2.96759449]
[1646024430911,33.08718258,86.406,86.33,179.11209012]
[1646024431111,33.08718258,86.406,86.331,8.95049444]
[1646024431511,33.08718258,86.406,86.333,2.3575577]
[1646024431711,33.08718258,86.406,86.334,6.0]
[1646024432612,33.08718258,86.406,86.34,17.3748]
[1646024432812,33.08718258,86.406,86.341,9.04817531]
[1646024433014,33.08718258,86.406,86.344,115.6]
[1646024433214,33.08718258,86.406,86.346,115.6]
[1646024433433,33.08718258,86.406,86.36,129.65]
[1646024433714,33.08718258,86.406,86.363,2.76167801]
[1646024433913,33.08718258,86.406,86.364,6.0]
[1646024436314,33.08718258,86.406,86.35,17.373]
[1646024436515,33.08718258,86.406,86.332,2.27973466]
[1646024436714,33.08718258,86.406,86.345,6.0]
[1646024436919,8.74678921,86.405,86.322,2.55138879]
[1646024437218,7.37678921,86.405,86.34,17.3751]
[1646024437415,33.08718258,86.406,86.34,17.3751]
[1646024438617,6.0,86.405,86.33,17.3772]
[1646024438917,8.74678921,86.405,86.33,17.3772]
[1646024439116,6.0,86.405,86.33,17.3772]
[1646024441825,1.49808386,86.399,86.32,17.3796]
[1646024442023,1.75661064,86.397,86.32,17.3796]
[1646024442321,6.0,86.396,86.32,17.3796]
[1646024442721,1.54983339,86.401,86.32,17.3796]
[1646024442920,10.631,86.4,86.321,23.6355]
[1646024443122,1.3561096,86.399,86.321,23.6355]
[1646024443322,17.3804,86.39,86.321,23.6355]
[1646024443522,35.1751,86.398,86.301,23.2569]
[1646024443523,115.6,86.388,86.301,23.2569]
[1646024443721,10.632,86.389,86.301,23.2569]
[1646024443722,115.6,86.386,86.301,23.2569]
[1646024443925,1.7518634,86.383,86.301,23.2569]
[1646024444121,1.48049362,86.381,86.301,23.2569]
[1646024444323,17.3844,86.37,86.301,23.2569]
[1646024444526,6.0,86.369,86.302,24.3151]
[1646024444823,24.5441,86.387,86.304,54.98762976]
[1646024445024,24.5441,86.387,86.305,6.0]
[1646024445425,24.5441,86.387,86.306,115.6]
[1646024445626,24.5441,86.387,86.307,6.0]
[1646024445928,6.0,86.386,86.305,6.0]
[1646024446126,4.632,86.385,86.304,6.0]
[1646024446327,6.0,86.384,86.304,6.0]
[1646024446527,4.632,86.385,86.305,115.6]
[1646024446726,4.632,86.386,86.306,6.0]
[1646024446926,6.0,86.385,86.305,59.82277423]
[1646024447132,6.0,86.385,86.306,6.0]
[1646024448029,6.0,86.386,86.306,6.0]
[1646024448441,6.0,86.386,86.304,6.0]
[1646024448641,17.3826,86.38,86.304,6.0]
[1646024448844,6.0,86.379,86.304,6.0]
[1646024449444,6.0,86.379,86.303,6.0]
[1646024450044,1.7559469,86.384,86.303,6.0]
[1646024450246,1.68335751,86.382,86.303,6.0]
[1646024450445,10.632,86.381,86.303,6.0]
[1646024450645,1.37099812,86.38,86.303,6.0]
[1646024450845,10.632,86.379,86.303,6.0]
[1646024451047,1.53464462,86.378,86.303,6.0]
[1646024451246,6.0,86.377,86.303,6.0]
[1646024451645,23.387,86.376,86.303,6.0]
[1646024451845,7.78167158,86.375,86.303,6.0]
[1646024454551,17.3846,86.37,86.303,6.0]
[1646024454753,6.0,86.369,86.302,24.3151]
[1646024454950,4.633,86.368,86.302,24.3151]
[1646024455150,6.0,86.367,86.302,24.3151]
[1646024455350,4.633,86.366,86.302,24.3151]
[1646024455550,7.73515832,86.365,86.302,24.3151]
[1646024455751,6.0,86.365,86.302,24.3151]
[1646024456149,24.4841,86.366,86.303,6.0]
[1646024457952,4.633,86.394,86.304,115.6]
[1646024458154,23.7326,86.402,86.306,115.6]
[1646024458352,6.0,86.401,86.323,115.6]
[1646024458552,6.0,86.401,86.324,28.7373]
[1646024458752,6.0,86.401,86.325,2.45263279]
[1646024458954,6.0,86.401,86.33,14.05]
[1646024459154,6.0,86.401,86.331,6.0]
[1646024460354,23.7326,86.402,86.331,6.0]
[1646024460556,23.7326,86.402,86.331,8.74678921]
[1646024460757,6.0,86.401,86.331,6.0]
[1646024461358,23.7326,86.402,86.331,6.0]
[1646024462464,23.7326,86.402,86.34,17.3748]
[1646024462658,23.7326,86.402,86.341,78.3941535]
[1646024463556,23.7326,86.402,86.341,30.9601]
[1646024464556,23.7326,86.402,86.341,24.9601]
[1646024464757,8.74678921,86.401,86.341,24.9601]
[1646024465160,7.37778921,86.4,86.341,24.9601]
[1646024465460,7.75766902,86.399,86.341,24.9601]
[1646024465760,9.20348987,86.398,86.341,24.9601]
[1646024465958,7.36730545,86.397,86.341,24.9601]
[1646024466161,4.631,86.396,86.341,24.9601]
[1646024466361,6.0,86.395,86.341,24.9601]
[1646024466560,17.3803,86.39,86.341,24.9601]
[1646024466759,7.84406102,86.389,86.341,24.9601]
[1646024467565,17.3827,86.38,86.311,23.5927]
[1646024467764,7.8086143,86.379,86.311,23.5927]
[1646024467964,10.55540351,86.379,86.311,23.5927]
[1646024468260,7.8086143,86.379,86.311,23.5927]
[1646024468464,26.52068921,86.378,86.311,23.5927]
[1646024468662,6.0,86.377,86.311,23.5927]
[1646024468861,8.74678921,86.377,86.311,23.5927]
[1646024469264,2.74678921,86.376,86.311,23.5927]
[1646024469466,6.0,86.375,86.311,23.5927]
[1646024469964,2.74678921,86.374,86.311,23.5927]
[1646024470165,6.0,86.373,86.311,23.5927]
[1646024471965,6.0,86.377,86.311,23.5927]
[1646024472367,17.3844,86.37,86.29,17.3844]
[1646024472566,17.3844,86.37,86.28,14.05]
[1646024472567,4.633,86.369,86.291,6.0]
[1646024472770,29.2335,86.368,86.292,24.4011]
[1646024472968,29.2335,86.368,86.293,6.0]
[1646024473369,29.2335,86.368,86.293,62.28134031]
[1646024473569,29.2335,86.368,86.293,56.28134031]
[1646024473769,29.2335,86.368,86.294,6.0]
[1646024474169,29.2335,86.368,86.292,24.4011]
[1646024474370,17.3864,86.36,86.293,6.0]
[1646024474568,6.0,86.359,86.293,6.0]
[1646024475372,6.0,86.359,86.292,24.4011]
[1646024475571,6.0,86.359,86.293,6.0]
[1646024475973,6.0,86.367,86.293,6.0]
[1646024476769,6.0,86.366,86.293,6.0]
[1646024477171,6.0,86.366,86.294,115.6]
[1646024477369,4.633,86.391,86.296,115.6]
[1646024477570,17.3965,86.391,86.303,115.6]
[1646024477770,17.3965,86.391,86.305,115.6]
[1646024478074,4.632,86.39,86.31,14.05]
[1646024478271,17.3965,86.391,86.311,6.0]
[1646024478469,24.1906,86.39,86.311,6.0]
[1646024478671,28.8226,86.39,86.311,6.0]
[1646024479073,23.3837,86.374,86.312,115.6]
[1646024479270,4.632,86.404,86.315,55.24517806]
[1646024479471,6.0,86.403,86.316,145.5925]
[1646024479676,23.3837,86.404,86.32,14.05]
[1646024479873,4.20387059,86.402,86.32,14.05]
[1646024480076,10.631,86.401,86.32,14.05]
[1646024480274,1.58627111,86.4,86.32,14.05]
[1646024480474,10.631,86.399,86.316,23.9925]
[1646024480677,1.55859483,86.398,86.316,23.9925]
[1646024480875,117.36315381,86.396,86.29,14.05]
[1646024481075,1.63532677,86.394,86.292,24.0606]
[1646024481277,6.0,86.393,86.293,54.68457938]
[1646024481576,34.37045216,86.393,86.293,54.68457938]
[1646024481777,1.84789816,86.391,86.293,54.68457938]
[1646024481976,6.0,86.39,86.294,6.0]
[1646024482197,1.38211374,86.389,86.294,6.0]
[1646024482381,10.632,86.388,86.294,6.0]
[1646024482677,1.72309267,86.387,86.294,6.0]
[1646024482876,1.83285869,86.385,86.293,6.0]
[1646024483079,10.632,86.384,86.293,6.0]
[1646024483479,17.3826,86.38,86.293,6.0]
[1646024483679,1.46111935,86.378,86.293,6.0]
[1646024483979,117.27489597,86.376,86.292,24.0606]
[1646024484179,115.6,86.374,86.27,31.4368]
[1646024484380,115.6,86.374,86.271,29.8717]
[1646024484381,1.35501216,86.372,86.271,29.8717]
[1646024484582,10.633,86.371,86.271,29.8717]
[1646024484783,10.633,86.371,86.272,45.12743191]
[1646024484983,1.36741953,86.37,86.273,6.0]
[1646024485184,10.633,86.369,86.273,6.0]
[1646024485382,10.633,86.369,86.272,6.0]
[1646024485383,7.84933166,86.368,86.272,6.0]
[1646024485584,120.233,86.367,86.272,6.0]
[1646024485886,1.55219458,86.364,86.272,6.0]
[1646024486084,10.634,86.363,86.272,6.0]
[1646024486286,1.64632776,86.362,86.272,6.0]
[1646024486488,17.3904,86.34,86.272,6.0]
[1646024486686,32.38356327,86.339,86.272,6.0]
[1646024486887,1.67432684,86.338,86.272,6.0]
[1646024487086,6.0,86.337,86.272,6.0]
[1646024487486,17.3929,86.33,86.272,6.0]
[1646024487686,7.57140864,86.329,86.263,0.57939878]
[1646024487986,1.82307469,86.328,86.263,0.57939878]
[1646024488186,6.0,86.327,86.263,0.57939878]
[1646024490110,7.83518725,86.327,86.263,0.57939878]
[1646024490306,1.69748912,86.319,86.263,0.57939878]
[1646024490505,6.0,86.318,86.263,0.57939878]
[1646024491108,7.38188237,86.324,86.263,0.57939878]
[1646024491405,6.36042181,86.323,86.263,0.57939878]
[1646024491607,17.3965,86.31,86.263,0.57939878]
[1646024491807,7.82151936,86.309,86.263,0.57939878]
[1646024492007,4.635,86.308,86.263,0.57939878]
[1646024492215,6.0,86.307,86.223,22.615]
[1646024492411,1.42255969,86.304,86.223,22.615]
[1646024492609,3.68073191,86.269,86.223,22.615]
[1646024493012,6.0,86.268,86.19,14.05]
[1646024493207,8.74678921,86.268,86.187,24.7892]
[1646024493611,2.74678921,86.267,86.187,24.7892]
[1646024493808,6.0,86.266,86.187,24.7892]
[1646024494008,6.0,86.266,86.187,75.16927034]
[1646024494612,17.4067,86.26,86.187,75.16927034]
[1646024494811,6.0,86.259,86.188,6.0]
[1646024495010,27.37928921,86.267,86.189,115.6]
[1646024495211,6.0,86.266,86.19,6.0]
[1646024495412,6.0,86.266,86.19,2.74678921]
[1646024495613,24.6325,86.267,86.2,17.4024]
[1646024495812,24.6325,86.267,86.202,46.46783916]
[1646024496018,24.6325,86.267,86.203,6.0]
[1646024496213,3.68073191,86.269,86.204,115.6]
[1646024496416,4.638,86.303,86.206,115.6]
[1646024496716,17.3985,86.3,86.212,2.92335534]
[1646024496915,6.0,86.299,86.215,2.46552255]
[1646024497214,6.0,86.299,86.218,2.8890141]
[1646024497413,6.0,86.299,86.22,2.69917194]
[1646024497414,24.05156441,86.298,86.22,2.69917194]
[1646024497619,6.0,86.297,86.222,118.36372082]
[1646024497813,6.0,86.297,86.224,115.6]
[1646024498015,6.0,86.297,86.226,115.6]
[1646024498214,6.0,86.297,86.23,17.3977]
[1646024498415,5.5,86.297,86.232,45.48774176]
[1646024498619,24.05156441,86.298,86.233,6.0]
[1646024498814,4.636,86.322,86.234,115.6]
[1646024499013,23.9189,86.336,86.241,115.6]
[1646024499213,41.0607,86.336,86.243,115.6]
[1646024499415,41.0607,86.336,86.246,3.06804116]
[1646024499715,4.635,86.335,86.249,2.54283166]
[1646024499913,41.0607,86.336,86.249,2.54283166]
[1646024499914,21.33570917,86.334,86.25,6.0]
[1646024500113,21.33570917,86.334,86.251,115.6]
[1646024500318,6.0,86.333,86.253,115.6]
[1646024500514,17.3928,86.33,86.26,17.3925]
[1646024500715,6.0,86.329,86.262,60.71886164]
[1646024500919,6.0,86.329,86.263,6.0]
[1646024501221,6.0,86.329,86.263,5.0]
[1646024501417,6.0,86.329,86.262,60.71886164]
[1646024501617,7.38281155,86.329,86.262,60.71886164]
[1646024502819,7.38281155,86.329,86.261,23.2675]
[1646024503218,17.3953,86.32,86.261,23.2675]
[1646024503420,6.0,86.319,86.261,23.2675]
[1646024503821,5.48115602,86.318,86.261,23.2675]
[1646024504022,6.0,86.317,86.261,23.2675]
[1646024506324,6.0,86.317,86.27,17.392]
[1646024506521,6.0,86.327,86.27,17.392]
[1646024506722,6.0,86.328,86.27,17.392]
[1646024507323,22.02129891,86.327,86.27,17.392]
[1646024507524,6.0,86.326,86.27,17.392]
[1646024509323,6.0,86.326,86.271,6.0]
[1646024509523,6.0,86.326,86.27,17.392]
[1646024515431,17.3945,86.32,86.261,23.2675]
[1646024515631,6.0,86.319,86.261,23.2675]
[1646024515833,4.635,86.318,86.261,23.2675]
[1646024516034,6.0,86.317,86.261,23.2675]
[1646024516435,17.3965,86.31,86.261,23.2675]
[1646024516635,6.0,86.309,86.261,23.2675]
[1646024516934,4.79556628,86.308,86.261,23.2675]
[1646024517240,6.0,86.307,86.261,23.2675]
[1646024518434,6.0,86.307,86.25,17.3957]
[1646024518635,17.3986,86.3,86.244,24.7184]
[1646024518834,1.50033704,86.298,86.244,24.7184]
[1646024519038,6.0,86.297,86.244,24.7184]
[1646024519235,2.74678921,86.306,86.244,24.7184]
[1646024519434,2.74678921,86.306,86.245,46.65191301]
[1646024520034,4.79556628,86.308,86.245,46.65191301]
[1646024520237,4.636,86.331,86.247,115.6]
[1646024520536,27.7921,86.331,86.248,121.6]
[1646024520938,23.3925,86.33,86.25,17.3947]
[1646024521136,4.635,86.329,86.251,6.0]
[1646024521338,26.23505878,86.328,86.251,6.0]
[1646024521936,26.23505878,86.328,86.249,6.0]
[1646024522141,26.23505878,86.328,86.247,6.0]
[1646024522539,26.23505878,86.328,86.261,45.3169578]
[1646024522740,26.23505878,86.328,86.262,30.81]
[1646024523142,6.0,86.328,86.262,30.81]
[1646024523339,4.635,86.341,86.263,3.06712372]
[1646024523541,24.6596,86.356,86.264,6.0]
[1646024523746,24.6596,86.356,86.266,3.0548193]
[1646024523946,24.6596,86.356,86.268,115.6]
[1646024524150,25.70578793,86.343,86.269,8.35181715]
[1646024524549,25.70578793,86.343,86.271,2.25728582]
[1646024524848,25.70578793,86.343,86.273,2.32848514]
[1646024525051,25.70578793,86.343,86.274,64.23864362]
[1646024525254,25.70578793,86.343,86.275,2.48540262]
[1646024525453,6.0,86.341,86.276,6.0]
[1646024525654,6.0,86.341,86.274,58.23864362]
[1646024525851,32.70888921,86.341,86.274,58.23864362]
[1646024526051,32.70888921,86.341,86.272,22.5503]
[1646024526655,17.3921,86.34,86.272,22.5503]
[1646024526853,6.0,86.339,86.272,22.5503]
[1646024527055,6.0,86.339,86.273,51.30909197]
[1646024532072,4.634,86.338,86.273,51.30909197]
[1646024532372,6.0,86.337,86.273,51.30909197]
[1646024532773,6.0,86.338,86.272,22.5503]
[1646024532971,4.634,86.337,86.272,22.5503]
[1646024533174,6.0,86.336,86.272,22.5503]
[1646024533772,17.3925,86.33,86.272,22.5503]
[1646024533971,1.11107726,86.328,86.272,22.5503]
[1646024534171,6.0,86.327,86.272,22.5503]
[1646024534572,4.635,86.326,86.272,22.5503]
[1646024534772,6.0,86.325,86.272,22.5503]
[1646024534972,17.3946,86.32,86.272,22.5503]
[1646024535172,6.0,86.319,86.272,22.5503]
[1646024535573,17.3946,86.32,86.272,22.5503]
[1646024535775,1.11107726,86.328,86.272,22.5503]
[1646024535976,6.0,86.327,86.272,22.5503]
[1646024538978,6.0,86.327,86.26,17.3919]
[1646024539178,2.74678921,86.326,86.261,6.0]
[1646024539981,2.74678921,86.326,86.262,44.45289937]
[1646024540184,2.74678921,86.326,86.263,6.0]
[1646024540482,2.74678921,86.326,86.264,23.2455]
[1646024540682,2.74678921,86.326,86.265,6.0]
[1646024542783,1.11107726,86.328,86.27,17.3892]
[1646024542984,1.11107726,86.328,86.271,6.0]
[1646024543189,2.74678921,86.354,86.272,115.6]
[1646024543389,1.56324513,86.383,86.281,115.6]
[1646024543390,4.634,86.382,86.281,115.6]
[1646024543588,1.4075333,86.397,86.284,3.04205006]
[1646024543790,1.7875415,86.407,86.292,2.29615746]
[1646024543987,17.6596,86.413,86.302,2.36378949]
[1646024544189,112.6,86.44,86.302,2.36378949]
[1646024544190,43.33855897,86.412,86.312,2.57254284]
[1646024544387,1.52543301,86.411,86.313,30.829]
[1646024544590,17.3805,86.39,86.313,30.829]
[1646024544788,4.631,86.41,86.314,6.0]
[1646024544789,8.95721324,86.389,86.314,6.0]
[1646024544988,8.95721324,86.389,86.313,24.829]
[1646024544989,10.632,86.388,86.313,24.829]
[1646024545189,1.58589802,86.387,86.313,24.829]
[1646024545389,6.0,86.386,86.313,24.829]
[1646024545592,24.8474,86.385,86.313,24.829]
[1646024545789,12.46950078,86.384,86.313,24.829]
[1646024545989,1.80197819,86.383,86.313,24.829]
[1646024546192,10.632,86.382,86.313,24.829]
[1646024546393,17.3846,86.37,86.313,24.829]
[1646024546590,4.632,86.369,86.313,24.829]
[1646024547194,19.04909982,86.368,86.313,24.829]
[1646024547392,6.0,86.367,86.313,24.829]
[1646024547593,17.3866,86.36,86.313,24.829]
[1646024549094,6.0,86.359,86.313,24.829]
[1646024549294,4.633,86.358,86.313,24.829]
[1646024549594,6.0,86.357,86.313,24.829]
[1646024549795,4.633,86.359,86.313,24.829]
[1646024549994,17.3866,86.36,86.313,24.829]
[1646024550495,17.3866,86.36,86.314,6.0]
[1646024550896,19.04909982,86.368,86.314,6.0]
[1646024551196,19.04909982,86.368,86.315,51.74846943]
[1646024551396,19.04909982,86.368,86.316,6.0]
[1646024552196,4.632,86.388,86.317,115.6]
[1646024552498,4.632,86.412,86.321,115.6]
[1646024552695,24.957,86.408,86.324,2.81263359]
[1646024552896,6.0,86.407,86.325,6.0]
[1646024553098,28.3762188,86.406,86.33,17.3762]
[1646024553296,23.7452188,86.406,86.332,44.36837099]
[1646024553498,23.7452188,86.406,86.333,6.0]
[1646024554497,23.7452188,86.406,86.34,17.3752]
[1646024554697,23.7452188,86.406,86.341,6.0]
[1646024555200,24.957,86.415,86.344,2.9551883]
[1646024555397,24.957,86.415,86.346,115.6]
[1646024555597,24.957,86.415,86.348,115.6]
[1646024555798,24.957,86.415,86.349,6.0]
[1646024555999,26.07743162,86.414,86.35,59.88269041]
[1646024556197,26.07743162,86.414,86.351,6.0]
[1646024556598,26.07743162,86.414,86.352,24.832]
[1646024556799,26.07743162,86.414,86.353,6.0]
[1646024557229,6.0,86.413,86.352,24.832]
[1646024559401,17.3768,86.41,86.352,24.832]
[1646024559602,6.0,86.409,86.352,24.832]
[1646024560904,17.3768,86.41,86.352,24.832]
[1646024561606,26.07743162,86.414,86.352,24.832]
[1646024561804,6.0,86.413,86.352,24.832]
[1646024562005,4.63,86.412,86.352,24.832]
[1646024562505,6.0,86.411,86.352,24.832]
[1646024563208,6.0,86.413,86.352,24.832]
[1646024563606,43.41263162,86.414,86.352,24.832]
[1646024563807,26.07743162,86.414,86.353,2.48000316]
[1646024564008,26.07743162,86.414,86.357,115.6]
[1646024564211,26.07743162,86.414,86.358,121.6]
[1646024564407,43.68863942,86.44,86.358,121.6]
[1646024564609,43.68863942,86.44,86.358,6.0]
[1646024564834,4.63,86.436,86.357,6.0]
[1646024565130,4.63,86.436,86.36,17.3714]
[1646024565333,25.90058129,86.414,86.361,6.0]
[1646024567635,6.0,86.413,86.361,6.0]
[1646024568135,6.0,86.413,86.36,17.3714]
[1646024569235,25.90058129,86.414,86.36,17.3714]
[1646024569436,4.63,86.436,86.362,2.44478079]
[1646024569639,4.628,86.468,86.372,2.5179056]
[1646024569837,10.628,86.468,86.375,2.27940835]
[1646024570136,10.628,86.468,86.378,2.9720982]
[1646024570337,10.628,86.468,86.379,6.0]
[1646024570338,22.05245207,86.467,86.379,6.0]
[1646024570536,10.628,86.466,86.379,6.0]
[1646024570739,10.628,86.466,86.379,8.96162971]
[1646024570937,6.0,86.466,86.381,118.69517624]
[1646024571137,4.628,86.465,86.384,2.73555079]
[1646024571338,6.0,86.464,86.386,115.6]
[1646024571537,6.0,86.464,86.389,2.48483586]
[1646024571737,6.0,86.464,86.391,56.10297474]
[1646024571937,6.0,86.466,86.392,8.61134876]
[1646024572137,6.0,86.466,86.394,2.29428676]
[1646024572338,6.0,86.466,86.395,6.0]
[1646024572538,6.0,86.466,86.4,17.3635]
[1646024572738,6.0,86.466,86.401,6.0]
[1646024573739,17.3663,86.46,86.395,6.0]
[1646024574039,29.8784,86.459,86.393,24.9766]
[1646024574339,32.62518921,86.459,86.393,24.9766]
[1646024574540,26.62518921,86.459,86.393,24.9766]
[1646024575540,26.62518921,86.459,86.394,6.0]
[1646024575741,6.0,86.458,86.393,24.9766]
[1646024575943,10.18875839,86.458,86.393,24.9766]
[1646024576149,7.44196918,86.458,86.393,24.9766]
[1646024576342,2.74678921,86.457,86.393,24.9766]
[1646024576542,6.0,86.458,86.393,24.9766]
[1646024578242,6.0,86.458,86.394,6.0]
[1646024578444,8.74678921,86.458,86.393,24.9766]
[1646024579243,4.628,86.457,86.393,24.9766]
[1646024579444,6.0,86.456,86.393,24.9766]
[1646024579845,6.0,86.458,86.393,24.9766]
[1646024581248,6.0,86.458,86.394,6.0]
[1646024581847,23.8784,86.459,86.395,115.6]
[1646024582146,24.2661,86.478,86.397,115.6]
[1646024582348,4.627,86.477,86.402,3.00015858]
[1646024582550,24.2661,86.478,86.404,115.6]
[1646024582746,25.7260419,86.477,86.406,115.6]
[1646024582948,25.7260419,86.477,86.408,115.6]
[1646024583145,25.7260419,86.477,86.409,6.0]
[1646024583546,25.7260419,86.477,86.41,17.3608]
[1646024583748,25.7260419,86.477,86.411,6.0]
[1646024584647,34.30967275,86.476,86.406,6.0]
[1646024584847,58.50307275,86.476,86.391,2.4162435]
[1646024585046,25.56288354,86.475,86.392,2.40630379]
[1646024585245,6.0,86.474,86.392,2.25362675]
[1646024585448,6.0,86.474,86.381,115.6]
[1646024585646,17.3643,86.47,86.382,2.97514834]
[1646024585845,17.3643,86.47,86.406,6.0]
[1646024585846,6.0,86.469,86.406,6.0]
[1646024586250,6.0,86.469,86.382,2.97514834]
[1646024587248,24.1934,86.476,86.406,6.0]
[1646024587448,6.0,86.475,86.407,115.6]
[1646024587648,6.0,86.475,86.408,6.0]
[1646024587848,6.0,86.475,86.406,6.0]
[1646024589449,31.56288354,86.475,86.406,6.0]
[1646024592558,2.74678921,86.474,86.406,6.0]
[1646024592758,6.0,86.473,86.406,6.0]
[1646024593158,2.74678921,86.472,86.406,6.0]
[1646024593359,17.3647,86.47,86.406,6.0]
[1646024593559,2.74678921,86.472,86.381,115.6]
[1646024593560,6.0,86.469,86.381,115.6]
[1646024593761,4.627,86.468,86.381,115.6]
[1646024593962,6.0,86.467,86.381,115.6]
[1646024594263,22.6774,86.466,86.381,115.6]
[1646024594461,17.3666,86.46,86.4,59.35260339]
[1646024594760,6.0,86.459,86.381,115.6]
[1646024595361,4.627,86.458,86.38,17.3666]
[1646024595560,6.0,86.457,86.38,17.3666]
[1646024595763,4.628,86.456,86.396,54.96959987]
[1646024595960,6.0,86.455,86.396,54.96959987]
[1646024596362,6.0,86.459,86.396,54.96959987]
[1646024597062,1.46220836,86.482,86.39,14.05]
[1646024597263,7.73535665,86.465,86.369,2.74678921]
[1646024597464,118.34678921,86.458,86.352,24.2966]
[1646024597662,1.74169784,86.455,86.352,24.2966]
[1646024597864,10.628,86.457,86.352,24.2966]
[1646024597865,17.3741,86.44,86.352,24.2966]
[1646024598065,24.33154466,86.438,86.353,53.43884947]
[1646024598264,10.628,86.437,86.353,53.43884947]
[1646024598462,1.73143708,86.436,86.353,53.43884947]
[1646024598662,115.6,86.434,86.352,24.2966]
[1646024598865,1.38053182,86.419,86.341,22.9968]
[1646024599065,10.63,86.418,86.341,22.9968]
[1646024599267,1.7318798,86.417,86.341,22.9968]
[1646024599466,1.48611974,86.415,86.341,22.9968]
[1646024599768,2.48532053,86.413,86.343,54.76524662]
[1646024599968,17.3774,86.41,86.343,54.76524662]
[1646024600268,6.0,86.409,86.343,54.76524662]
[1646024600468,8.74678921,86.409,86.343,54.76524662]
[1646024600870,2.74678921,86.408,86.343,54.76524662]
[1646024601069,6.0,86.407,86.343,54.76524662]
[1646024601471,2.74678921,86.406,86.343,54.76524662]
[1646024601670,6.0,86.405,86.343,54.76524662]
[1646024602072,6.0,86.405,86.344,6.0]
[1646024602771,2.74678921,86.406,86.35,17.3724]
[1646024602972,2.74678921,86.429,86.352,2.61128872]
[1646024603173,2.74678921,86.439,86.355,2.64286894]
[1646024603372,2.74678921,86.439,86.354,115.6]
[1646024603373,2.74678921,86.439,86.361,115.6]
[1646024603580,23.9052,86.448,86.363,118.2349396]
[1646024603772,23.9052,86.448,86.366,2.9049648]
[1646024603972,23.9052,86.448,86.371,115.6]
[1646024604173,23.9052,86.448,86.374,2.38883801]
[1646024604377,2.74678921,86.467,86.381,115.6]
[1646024604574,6.0,86.466,86.384,2.27517074]
[1646024604779,6.0,86.466,86.387,2.62138914]
[1646024604973,19.95606228,86.465,86.388,166.62363749]
[1646024605175,6.0,86.464,86.388,166.62363749]
[1646024605375,19.95606228,86.465,86.39,115.6]
[1646024605675,19.95606228,86.465,86.391,2.72033598]
[1646024605879,19.95606228,86.465,86.392,115.6]
[1646024606096,2.74678921,86.467,86.393,3.10279231]
[1646024606295,2.74678921,86.467,86.396,2.3265311]
[1646024606496,2.74678921,86.467,86.398,115.6]
[1646024606695,2.74678921,86.467,86.399,6.0]
[1646024607497,18.89313787,86.47,86.401,55.34246304]
[1646024607698,4.627,86.474,86.402,6.0]
[1646024607898,2.74678921,86.473,86.402,6.0]
[1646024608599,6.0,86.472,86.402,6.0]
[1646024608798,24.27112573,86.472,86.402,6.0]
[1646024608998,2.74678921,86.471,86.402,6.0]
[1646024609898,6.0,86.47,86.402,6.0]